{"text_format":"3","workbook":"xlsx","n_sheets":3,"sheets":["list01","list02","list03"],"read":"whole","date_system":"1900"}

{"sheet":"list01","index":0,"n_rows":14,"n_cols":13,"rows_kept":14,"merged":[[6,1,6,12],[7,1,7,12],[10,1,10,12],[12,1,12,6]]}
[]
[]
[]
[]
[]
[]
[null,"Ҳисобчилар диққатига!\nЮридик шахслар тўғрисидаги маълумотларда СТИР тўғри киритилиши лозим!"]
[null,"Изоҳлар:\n7, 8, 9, 10 ва 11 устунлар ўсиб бормайдиган тартибда жорий ҳисобот ойидаги суммалар тўлдирилади.\n* СТИР Ўзбекистон Республикаси резидентлари бўйича кўрсатилади."]
[{"$nulls":8},"Илова №",1]
[]
[null,"Ҳар бир юридик шахс кесимида тўланган дивидендлар ва фоизлар тарзидаги даромад суммалари ҳамда тўлов манбаида ушлаб қолинган солиқлар тўғрисида\nМАЪЛУМОТ"]
[null,"Т/р","Юридик шахснинг  \n(даромад олувчининг)\nноми","СТИР*","Ҳисобланган сана\n(кк.оо.йййй)","Тўланган сана\n(кк.оо.йййй)","Даромад тури\n(дивиденд ёки фоиз)","Ҳисобланган даромад суммаси","Тўланган даромад суммаси","Солиқ базаси","Ушлаб қолинган солиқ суммаси","Имтиёзли даромад суммаси","Имтиёзларни қўллаш учун асос\n(Ҳужжат тури, рақами ва санаси)"]
[null,"Жорий хисобот ойи учун жами",{"$nulls":5},{"$f":"SUM(H15:H10000)","v":{"v":0,"d":"0.00"}},{"$f":"SUM(I15:I10000)","v":{"v":0,"d":"0.00"}},{"$f":"SUM(J15:J10000)","v":{"v":0,"d":"0.00"}},{"$f":"SUM(K15:K10000)","v":{"v":0,"d":"0.00"}},{"$f":"SUM(L15:L10000)","v":{"v":0,"d":"0.00"}},"x"]
[null,1,2,3,4,5,6,7,8,9,10,11,12]

{"sheet":"list02","index":1,"n_rows":14,"n_cols":14,"rows_kept":14,"merged":[[6,1,6,13],[7,1,7,13],[10,1,10,13],[12,1,12,7]]}
[]
[]
[]
[]
[]
[]
[null,"Ҳисобчилар диққатига!\n*Жисмоний шахслар тўғрисидаги маълумотларда ЖШШИР тўғри киритилиши лозим!\nФуқароларнинг ЖШШИРини Давлат солиқ қўмитасининг \"Soliq.uz\" расмий сайтидаги Интерактив давлат хизматларининг \n\"СТИР ёки ЖШШИРни аниқлаш\"  бўлимидан текшириб кўриш имконига эгасиз."]
[null,"Изоҳлар:\n8, 9, 10, 11 ва 12 устунлар ўсиб бормайдиган тартибда жорий ҳисобот ойидаги суммалар тўлдирилади.\nТижорат банклари жисмоний шахсларнинг омонатлари бўйича фоизларни битта сатрда 1 устунда кўрсатади. (жисмоний шахслар) деб номланади."]
[{"$nulls":9},"Илова №",2]
[]
[null,"Солиқ агенти томонидан жисмоний шахсларга тўланган дивиденд ва фоизлар тарзидаги даромад суммаларидан ушлаб қолинган солиқлар тўғрисида\nМАЪЛУМОТ"]
[null,"Т/р","Жисмоний шахснинг\n(даромад олувчининг)\nФ.И.О","СТИР","ЖШШИР\n(пенсия дафтарчаси рақами)","Ҳисобланган сана\n(кк.оо.йййй)","Тўланган сана\n(кк.оо.йййй)","Даромад тури\n(дивиденд ёки фоиз)","Ҳисобланган даромад суммаси","Тўланган даромад суммаси","Солиқ базаси","Ушлаб қолинган солиқ суммаси","Имтиёзли даромад суммаси","Имтиёзларни қўллаш учун асос\n(Ҳужжат тури, рақами ва санаси)"]
[null,"Жорий хисобот ойи учун жами",{"$nulls":6},{"$f":"SUM(I15:I9999)","v":{"v":0,"d":"0.00"}},{"$f":"SUM(J15:J9999)","v":{"v":0,"d":"0.00"}},{"$f":"SUM(K15:K9999)","v":{"v":0,"d":"0.00"}},{"$f":"SUM(L15:L9999)","v":{"v":0,"d":"0.00"}},{"$f":"SUM(M15:M9999)","v":{"v":0,"d":"0.00"}},"x"]
[null,1,2,3,4,5,6,7,8,9,10,11,12,13]

{"sheet":"list03","index":2,"n_rows":14,"n_cols":10,"rows_kept":14,"merged":[[4,1,4,9],[5,1,5,9],[10,1,10,9],[12,1,12,5]]}
["lc=R67C27"]
[]
[]
[]
[null,"Ҳисобчилар диққатига!\nЮридик шахслар тўғрисидаги маълумотларда СТИР тўғри киритилиши лозим!"]
[null,"Изоҳлар:\n6, 7, 8  ва 9 устунлар ўсиб бормайдиган тартибда жорий ҳисобот давридаги суммалар тўлдирилади.\n"]
[]
[]
[{"$nulls":8},"Илова №",3]
[]
[null,"Солиқ агенти томонидан тўлов манбаида солиқ суммаси ушлаб қолинган дивидендлар тўғрисида\nМАЪЛУМОТ"]
[null,"Т/р","Юридик шахснинг \n(даромад тўловчининг)\nноми","СТИР*","Дивиденд ҳисобланган сана\n(кк.оо.йййй)","Дивиденд олинган сана\n(кк.оо.йййй)","Ҳисобот (солиқ) даври бошида олинган дивидендларни солиқ базасидан камайтирилмаган қисми","Олинган дивидендларнинг ҳисобга олинадиган суммаси","Солиқ агенти томонидан ушлаб қолинган солиқ суммаси","Ҳисобот (солиқ) даври оҳирида солиқ базасини камайтириш (ҳисобга олиш) учун қабул қилинмаган дивидендлар суммаси"]
[null,"Жорий хисобот ойи учун жами",{"$nulls":4},{"$f":"SUM(G15:G10011)","v":{"v":0,"d":"0.00"}},{"$f":"SUM(H15:H10011)","v":{"v":0,"d":"0.00"}},{"$f":"SUM(I15:I10011)","v":{"v":0,"d":"0.00"}},{"$f":"SUM(J15:J10011)","v":{"v":0,"d":"0.00"}}]
[null,1,{"$f":"B14+1","v":2},{"$f":"C14+1","v":3},4,5,6,7,8,9]